Cogmind - Beta 13 @@@ ROGUE MODE // 2024.04.04 @ 21:56:25 Player: Appleyapple Result: Destroyed by P-60 Hacker with Shock Rifle Performance ------------- Evolutions (1) 500 Regions Visited (5) 1000 Robots Destroyed (38) 190 Value Destroyed (1413) 1413 Prototype IDs (4) 80 Alien Tech Used (0) 0 Bonus (208) 208 TOTAL SCORE: 3391 Bonus ------- High Alert Combat Kills 8 Entered Garrisons 200 Cogmind --------- Core Integrity 0/400 Matter 240/300 Energy 280/280 System Corruption 3% Temperature Cool (0) Movement Rolling (110) Ox2 Location -9/Recycling Parts ------- > --- POWER (1) -------- Heavy Ion Engine > --- PROPULSION (2) --- Wheel > --- UTILITY (3) ------ Heat Sink Medium Storage Unit > --- WEAPON (3) ------- Heavy Assault Rifle Datajack > --- INVENTORY (10) --- Improved Ion Engine Light Armor Plating Peak State ------------ > --- POWER ------------ Heavy Ion Engine > --- PROPULSION ------- Wheel Armored Wheel > --- UTILITY ---------- Heat Sink Medium Storage Unit Propulsion Shielding > --- WEAPON ----------- Improved Medium Laser Advanced Beam Cannon Heavy Assault Rifle > --- INVENTORY -------- Aluminum Leg Aluminum Leg Wheel Light Armor Plating EM Pulse Gun Datajack [Rating: 17] Favorites ----------- Power Heavy Ion Engine Engine Heavy Ion Engine Propulsion Aluminum Leg Treads Light Treads Leg Aluminum Leg Wheel Armored Wheel Utility Propulsion Shielding Device Heat Sink Storage Small Storage Unit Protection Propulsion Shielding Weapon Heavy Assault Rifle Energy Gun EM Pulse Gun Energy Cannon Advanced Beam Cannon Ballistic Gun Heavy Assault Rifle Launcher Grenade Launcher Special Melee Weapon Datajack Build | -11 -10 -9 -9 -9 -9 ------- Run | Yrd Mat Mat Sto Gar Rec Slots Evolved 2 | . . 2 . . . Power . | . . . . . . Propulsion . | . . . . . . Utility 1 | . . 1 . . . Weapon 1 | . . 1 . . . Parts Attached 42 | 6 4 8 17 4 3 Power 4 | 1 . 1 2 . . Engine 4 | 1 . 1 2 . . Core . | . . . . . . Reactor . | . . . . . . Propulsion 10 | 2 . 2 5 . 1 Treads 1 | . . . 1 . . Leg 4 | 2 . . 2 . . Wheel 5 | . . 2 2 . 1 Hover . | . . . . . . Flight . | . . . . . . Utility 10 | 1 3 2 3 1 . Device 1 | . . . . 1 . Storage 5 | 1 2 1 1 . . Processor . | . . . . . . Hackware . | . . . . . . Protection 4 | . 1 1 2 . . Artifact . | . . . . . . Weapon 18 | 2 1 3 7 3 2 Energy Gun 10 | 1 1 2 4 1 1 Energy Cannon 1 | . . . 1 . . Ballistic Gun 5 | 1 . 1 2 1 . Ballistic Cannon . | . . . . . . Launcher 1 | . . . . 1 . Special Weapon . | . . . . . . Impact Weapon . | . . . . . . Slashing Weapon . | . . . . . . Piercing Weapon . | . . . . . . Special Melee Weapon 1 | . . . . . 1 Unidentified Prototypes 2 | . . . 2 . . Parts Lost 16 | . . 1 6 3 6 Power 1 | . . 1 . . . Propulsion 3 | . . . 1 . 2 Utility 4 | . . . 2 1 1 Weapon 8 | . . . 3 2 3 Highest Loss Streak 6 | . . 1 3 3 6 To Critical Strikes . | . . . . . . Average Slot Usage (%) 96 | . 94 99 97 98 89 Engine 11 | . 14 10 11 11 11 Leg 9 | . 28 5 9 . . Wheel 12 | . . 16 11 22 18 Device 2 | . . . . 7 11 Storage 17 | . 13 22 21 13 11 Protection 10 | . 8 11 9 11 9 Energy Gun 14 | . 14 22 16 8 8 Energy Cannon 5 | . . . 7 11 6 Ballistic Gun 10 | . 14 11 8 10 11 Naked Turns . | . . . . . . Heaviest Build 30 | 14 15 24 29 30 30 Greatest Support 24 | 20 20 24 24 22 22 Greatest Overweight (x) 3 | 3 . . 1 1 2 Average Overweight (x) . | . . . . 1 1 Largest Inventory Capacity 25 | 8 25 8 10 10 10 Average Capacity 8 | 7 8 8 8 10 10 Most Carried 9 | 5 3 8 8 9 7 Average Carried 4 | . 1 4 4 7 4 Final Capacity 10 | 8 8 8 10 10 10 Final Carried 8 | . 3 7 8 7 2 Class Distribution -------------------- 70% | Tank 28% | Mutant Dominant Class ---------------- Mutant | -10/Materials Tank | -9/Materials Tank | -9/Storage Tank | -9/Garrison Tank | -9/Recycling Resources | -11 -10 -9 -9 -9 -9 ----------- Run | Yrd Mat Mat Sto Gar Rec Matter Collected 808 | 207 33 175 292 101 . Remotely . | . . . . . . Salvage Created 1450 | . 49 295 827 219 60 Parts 89 | . 7 17 53 10 2 Haulers Intercepted . | . . . . . . Recyclers Shooed . | . . . . . . Parts Field Recycled . | . . . . . . Retrieved Matter . | . . . . . . Parts Self-Destructed . | . . . . . . Prevented . | . . . . . . Kills | -11 -10 -9 -9 -9 -9 ------- Run | Yrd Mat Mat Sto Gar Rec Combat Hostiles Destroyed 35 | . 3 5 19 7 1 Guns 28 | . 3 5 15 4 1 Cannons 6 | . . . 4 2 . AOE 1 | . . . . 1 . Classes Destroyed 5 | . 1 1 3 . . Builder 2 | . . . 2 . . Operator 1 | . . . 1 . . Swarmer 6 | . 3 . 3 . . Grunt 18 | . . . 12 6 . Sentry 11 | . . 5 4 1 1 Best Kill Streak 8 | . 2 2 8 3 1 Combat Bots Only 6 | . 2 2 6 3 1 Max Kills in Single Turn 2 | . 2 1 2 2 1 Gunslinging 1 | . 1 . 1 . . Exploded 1 | . . . . 1 . Melee . | . . . . . . Uniques/NPCs Destroyed . | . . . . . . Combat | -11 -10 -9 -9 -9 -9 -------- Run | Yrd Mat Mat Sto Gar Rec Hostile Shots Fired 222 | . 16 46 86 33 41 Missed 63 | . 6 15 23 8 11 Damage Taken 2039 | . 82 467 666 320 504 Core 409 | . 9 85 90 76 149 Absorbed by Shields . | . . . . . . Redirected to Shielding 51 | . 9 17 . 17 8 Regen/Repaired (Parts) 111 | . . . 111 . . Core Remaining (%) 98 | 100 96 . . . . Volleys Fired 112 | . 11 27 42 12 20 Largest 3 | . 2 3 3 3 3 Hottest 153 | . 60 118 153 147 147 Shots Fired 262 | . 22 65 108 34 33 Gun 227 | . 22 65 91 20 29 Cannon 31 | . . . 17 10 4 Launcher 4 | . . . . 4 . Special . | . . . . . . Kinetic 91 | . 11 11 37 12 20 Thermal 77 | . . 27 23 18 9 Explosive 4 | . . . . 4 . Electromagnetic 90 | . 11 27 48 . 4 Robot Hit Streak 11 | . 2 11 9 6 7 Robot Miss Streak 8 | . 8 4 6 2 3 Penetration Max . | . . . . . . Secondary Targets 4 | . 1 . 3 . . Max Gunslinging Chain 1 | . 1 . 1 . . Shots Hit Robots 162 | . 7 48 67 16 24 Core Hits 57 | . 3 10 33 9 2 Critical Kills . | . . . . . . Critical Parts Destroyed 1 | . . 1 . . . Critical Strikes 3 | . . 3 . . . Destroy 1 | . . 1 . . . Corrupt 2 | . . 2 . . . Melee Attacks 3 | . . . . . 3 Impact . | . . . . . . Slashing . | . . . . . . Piercing . | . . . . . . Sneak Attacks 1 | . . . . . 1 Combat Hostiles . | . . . . . . Follow-up Attacks . | . . . . . . Damage Inflicted 2646 | . 106 606 1203 395 336 Guns 2051 | . 106 606 850 193 296 Cannons 348 | . . . 225 83 40 Explosions 244 | . . . 125 119 . Melee . | . . . . . . Ramming 3 | . . . 3 . . Kinetic 818 | . 38 128 348 87 217 Thermal 922 | . . 250 375 189 108 Explosive 119 | . . . . 119 . Electromagnetic 784 | . 68 228 477 . 11 Impact . | . . . . . . Slashing . | . . . . . . Piercing . | . . . . . . Highest Corruption 3 | . . . 1 2 3 Average Corruption 1 | . . . 1 1 2 Corruption Purged . | . . . . . . Corruption Blocked . | . . . . . . Effects 11 | . . . 3 5 3 Message Errors 6 | . . . 1 3 2 Heat Flow Errors 2 | . . . 1 . 1 Energy Discharges 2 | . . . 1 1 . Data Loss (minor) 1 | . . . . 1 . Overload Shots . | . . . . . . Overflow Damage . | . . . . . . Projectiles . | . . . . . . Explosions . | . . . . . . Melee . | . . . . . . Knockbacks . | . . . . . . Impact . | . . . . . . Kinetic . | . . . . . . Secondary . | . . . . . . Self-Inflicted Damage 17 | . . . 17 . . Shots 1 | . . . 1 . . Rammed 1 | . . . 1 . . Targets Rammed 1 | . . . 1 . . Kicked . | . . . . . . Crushed . | . . . . . . Highest Temperature 424 | . . 315 424 251 351 Average Temperature 140 | . . 120 151 95 193 Received Heat Transfer 564 | . . 153 186 135 90 Effects 13 | . . 1 7 1 4 Shutdowns 1 | . . . 1 . . Energy Bleed 3 | . . 1 2 . . Interference 7 | . . . 4 1 2 Damage (minor) 2 | . . . . . 2 Siege Activations . | . . . . . . Robots Corrupted . | . . . . . . Combat Hostiles . | . . . . . . Parts Fried 2 | . . . 2 . . Impact Corruptions . | . . . . . . Robots Melted . | . . . . . . Combat Hostiles . | . . . . . . Parts Melted 4 | . . 3 . . 1 Heat Transferred 2013 | . . 740 681 370 222 Parts Sabotaged . | . . . . . . Parts Stolen . | . . . . . . Parts Stripped . | . . . . . . Power Chain Reactions 2 | . . . 2 . . Alert | -11 -10 -9 -9 -9 -9 ------- Run | Yrd Mat Mat Sto Gar Rec Peak Influence 437 | . 92 227 437 345 186 Initial 154 | . . 12 95 85 154 Average 173 | . 21 130 269 215 154 Maximum Alert Level 2 | . . 1 2 1 . Low Security (%) 64 | 100 100 80 34 54 100 Level 1 34 | . . 19 62 45 . Level 2 . | . . . 2 . . Level 3 . | . . . . . . Level 4 . | . . . . . . Level 5 . | . . . . . . High Security . | . . . . . . Max Security . | . . . . . . Squads Dispatched 4 | . 1 . 3 . . Investigation 2 | . 1 . 1 . . Extermination . | . . . . . . Reinforcement 2 | . . . 2 . . Assault . | . . . . . . Garrison . | . . . . . . Intercept . | . . . . . . Searches Triggered . | . . . . . . Construction Impeded 1 | . . . 1 . . Haulers Reinforced . | . . . . . . Active Scanning Responses . | . . . . . . Cargo Convoy Interrupts . | . . . . . . Stealth | -11 -10 -9 -9 -9 -9 --------- Run | Yrd Mat Mat Sto Gar Rec Distress Signals . | . . . . . . Communications Jammed . | . . . . . . Distress Signals . | . . . . . . Times Spotted 48 | . 8 6 22 9 3 Peak Tracking Total 7 | . 3 3 7 4 6 Tactical Retreats 3 | . 1 . 1 . 1 Traps | -11 -10 -9 -9 -9 -9 ------- Run | Yrd Mat Mat Sto Gar Rec Traps Triggered 4 | . . . 1 3 . Indirectly . | . . . . . . Trap Hack Attempts . | . . . . . . Triggered . | . . . . . . Disarmed . | . . . . . . Reprogrammed . | . . . . . . Reused . | . . . . . . Traps Extracted . | . . . . . . Installed . | . . . . . . Triggered . | . . . . . . Machines | -11 -10 -9 -9 -9 -9 ---------- Run | Yrd Mat Mat Sto Gar Rec Machines Disabled 3 | . . 1 1 1 . Max in Single Turn 1 | . . 1 1 1 . Garrison Relay 1 | . . . . 1 . Machines Repaired . | . . . . . . Machines Dismantled . | . . . . . . Machines Sabotaged . | . . . . . . Overloaded Fab Kills . | . . . . . . Hacking | -11 -10 -9 -9 -9 -9 --------- Run | Yrd Mat Mat Sto Gar Rec Machines Accessed 12 | . 2 1 5 2 2 Terminals 8 | . 2 . 3 2 1 Fabricators . | . . . . . . Repair Stations 1 | . . . 1 . . Recycling Units 1 | . . . . . 1 Scanalyzers 1 | . . 1 . . . Garrison Access 1 | . . . 1 . . Total Hacks 44 | . 8 7 15 3 11 Successful 28 | . 6 6 9 . 7 Failed 16 | . 2 1 6 3 4 Catastrophic 3 | . . . 1 2 . Database Lockouts . | . . . . . . Manual 4 | . 4 . . . . Terminals 28 | . 8 . 10 3 7 Fabricators . | . . . . . . Repair Stations 3 | . . . 3 . . Recycling Units 4 | . . . . . 4 Scanalyzers 7 | . . 7 . . . Garrison Access 2 | . . . 2 . . Terminal Hacks 15 | . 6 . 6 . 3 Record 4 | . 4 . . . . Prototype ID Bank 1 | . . . 1 . . Scanalyzer Index 1 | . . . 1 . . Alert Level 3 | . 1 . 2 . . Unreport Threat 1 | . . . 1 . . Dispatch Records 1 | . . . . . 1 Maintenance Status 1 | . . . . . 1 Security Status 1 | . . . . . 1 Investigation Status 1 | . . . 1 . . Zone Layout 1 | . 1 . . . . Fabricator Hacks . | . . . . . . Repair Station Hacks 2 | . . . 2 . . Scan Component 1 | . . . 1 . . Repair 1 | . . . 1 . . Recycling Unit Hacks 4 | . . . . . 4 Recycle Component 2 | . . . . . 2 Process 1 | . . . . . 1 Retrieve Matter 1 | . . . . . 1 Scanalyzer 6 | . . 6 . . . Insert Component 3 | . . 3 . . . Analyze 3 | . . 3 . . . Garrison Access Hacks 1 | . . . 1 . . Unlock Access 1 | . . . 1 . . Unauthorized Hacks . | . . . . . . Terminals . | . . . . . . Fabricators . | . . . . . . Repair Stations . | . . . . . . Recycling Units . | . . . . . . Scanalyzers . | . . . . . . Garrison Access . | . . . . . . Data Cores Recovered 1 | . . . 1 . . Used . | . . . . . . Hacking Detections 10 | . 2 . 5 2 1 Full Trace Events 3 | . 1 . 1 1 . Feedback Events 1 | . . . . 1 . Corruption 1 | . . . . 1 . Feedback Blocked . | . . . . . . Robot Schematics Acquired . | . . . . . . Robots Built . | . . . . . . Authchips . | . . . . . . Time . | . . . . . . Total Robot Build Rating . | . . . . . . Part Schematics Acquired 3 | . . 3 . . . Parts Built . | . . . . . . Authchips . | . . . . . . Time . | . . . . . . Total Part Build Rating . | . . . . . . Parts Repaired 1 | . . . 1 . . Time 32 | . . . 32 . . Parts Recycled 2 | . . . . . 2 Recycled Matter 52 | . . . . . 52 Retrieved Matter 52 | . . . . . 52 Retrieved Components . | . . . . . . Parts Scanalyzed 3 | . . 3 . . . Part Schematics Acquired 3 | . . 3 . . . Parts Damaged . | . . . . . . Bothacking | -11 -10 -9 -9 -9 -9 ------------ Run | Yrd Mat Mat Sto Gar Rec Used RIF Installer . | . . . . . . Robots Hacked 2 | . . . . . 2 Non-combat 1 | . . . . . 1 Combat 1 | . . . . . 1 Robot Hacks Applied 2 | . . . . . 2 parse_system 2 | . . . . . 2 Relay Couplers Released 4 | . . . . 4 . Machine Destruction 4 | . . . . 4 . Fabnet Peak Effective % . | . . . . . . Robots Rewired . | . . . . . . Allies Hacked . | . . . . . . Hacks Repelled . | . . . . . . Allies | -11 -10 -9 -9 -9 -9 -------- Run | Yrd Mat Mat Sto Gar Rec Total Allies . | . . . . . . Largest Group . | . . . . . . Highest-Rated Group . | . . . . . . Highest-Rated Ally . | . . . . . . Total Orders . | . . . . . . Ally Attacks . | . . . . . . Total Damage . | . . . . . . Kills . | . . . . . . Allies Corrupted . | . . . . . . Allies Melted . | . . . . . . Intel | -11 -10 -9 -9 -9 -9 ------- Run | Yrd Mat Mat Sto Gar Rec Robot Analysis Total . | . . . . . . Derelict Logs Recovered . | . . . . . . Drone Launches . | . . . . . . Drone Recoveries . | . . . . . . Exploration | -11 -10 -9 -9 -9 -9 ------------- Run | Yrd Mat Mat Sto Gar Rec Turns Passed 2362 | 115 448 264 843 522 170 Spaces Moved 1507 | 67 272 169 445 441 113 Core 24 | 24 . . . . . Treads 2 | . . . 2 . . Legs 529 | 43 272 36 178 . . Wheels 952 | . . 133 265 441 113 Hover . | . . . . . . Flight . | . . . . . . Fastest Speed 50 | 50 120 90 90 100 95 Average Speed 113 | 99 120 96 133 100 100 Slowest Speed 240 | 200 120 120 240 100 110 Overloaded Moves . | . . . . . . Propulsion Burnouts . | . . . . . . Robots Hopped . | . . . . . . Cave-ins Triggered . | . . . . . . Exploration Rate (%) 28 | 4 37 16 41 56 18 Regions Visited 5 Branch Regions 2 Pre-discovered Areas . | . . . . . . Known Exits Taken 1 | . . . 1 . . Unknown Exits Taken 3 | 1 1 1 . . . Scrap Searched . | . . . . . . Spaces Dug . | . . . . . . Terrain Destroyed 15 | . . . 10 5 . Melee . | . . . . . . Projectile . | . . . . . . AOE 15 | . . . 10 5 . Terrain Rammed . | . . . . . . Walls Destroyed . | . . . . . . Machines Disabled . | . . . . . . Actions | -11 -10 -9 -9 -9 -9 --------- Run | Yrd Mat Mat Sto Gar Rec Total 1951 | 115 374 214 613 496 139 Wait 198 | 37 75 . 73 13 . Move 1499 | 66 271 168 444 437 113 Hop . | . . . . . . Pick Up 39 | 6 7 7 17 2 . Fast Attach . | . . . . . . Attach 41 | 6 4 7 17 4 3 Detach 18 | . 3 4 10 1 . Swap 1 | . . 1 . . . Drop 12 | . 3 . 9 . . Fire 112 | . 11 27 42 12 20 Melee 3 | . . . . . 3 Ram 1 | . . . 1 . . Kick . | . . . . . . Crush . | . . . . . . Escape Stasis 24 | . . . . 24 . Rewire 3 | . . . . 3 . Trap . | . . . . . . Miscellaneous . | . . . . . . Route ------- -11/Scrapyard -10/Materials -9/Materials -9/Storage -9/Garrison (discovered 2 exits: *Rec x2) -9/Recycling History --------- Turn | Location | Event 8 | -11/Scrapyard | Discovered new exit (range 16) 116 | -11/Scrapyard | Entered Materials 307 | -10/Materials | Build established: Mutant 483 | -10/Materials | Discovered new exit (range 16) 564 | -10/Materials | Entered another Materials area 564 | -9/Materials | Evolved 2 slots: Utility x1, Weapon x1 748 | -9/Materials | Discovered new exit (range 7) 828 | -9/Materials | Entered Storage 868 | -9/Storage | Build established: Tank 1028 | -9/Storage | Repaired Hvy. Assault Rifle 1219 | -9/Storage | Lost 3 parts (1n1u1w) 1299 | -9/Storage | Identified exit to Garrison 1671 | -9/Storage | Entered Garrison 1780 | -9/Garrison | Triggered checkpoint 1790 | -9/Garrison | Triggered checkpoint 1805 | -9/Garrison | Core integrity fell below 50% 1832 | -9/Garrison | Lost 3 parts (1u2w) 1912 | -9/Garrison | Discovered new exit (range 12) 1934 | -9/Garrison | Attempted to access garrison exit controls, blocked by remote lockdown 1974 | -9/Garrison | Triggered checkpoint 2035 | -9/Garrison | Garrison Relay disabled 2181 | -9/Garrison | Discovered new exit (range 10) 2193 | -9/Garrison | Entered Recycling 2356 | -9/Recycling | Core integrity fell below 20% 2363 | -9/Recycling | Destroyed by P-60 Hacker with Shock Rifle Last Messages --------------- Overheating: Wheel damaged (-7). Arm. Wheel destroyed. Imp. Medium Laser destroyed. Critical hit (Burn: +37). EM Pulse Gun destroyed. Heat Sink melted. Y-45 Defender destroyed. R-06 Scavenger collects Lgt. Treads. Propulsion Shielding destroyed. Wheel destroyed. R-06 Scavenger collects Heat Sink. Sneak attack on R-06 Scavenger. Jacked R-06 Scavenger... >>parse_system Reading system data... P-60 Hacker resets L-31 Rogue, system corruption cleaned. Jacked L-31 Rogue... >>parse_system Reading system data... Map ----- +----------------------------------------------------+ | ?????????????????????????????????????????????????? | | ?????????????????????????????????????????????????? | | ?????????????????????????????????????????????????? | | ?????????????????????????????????????????????????? | | ?????????????????????????????????????????????????? | | ?????????????????????????????????????????????????? | | ?????????????????????????????????????????????????? | | ?????????????????????????????????????????????????? | | ?????????????????????????????????????????????????? | | ????????????????????#########????????????????????? | | ????????????????????# [ = ????????????????????? | | ????????????????????# !* ?????????????????????? | | ????????????????????# ! ?????????????????????? | | ????????????????????# % ??????????????????????? | | ????????????????????# ??????????????????????? | | ????????????????????? % ???????????????????????? | | ????????????????????? ???????????????????????? | | ?????????????????????? ?????????#??????????????? | | ????????????#######??? ?????##? #??????????????? | | ############# #####+###### ##r########???????? | | ??????? | | T %r ??????? | | ??????? | | ############# ######## ??????? | | ??????#########+##########lp ??????? | | ??????# @ ??????? | | ??????# """ """ # ###########+???????? | | ????### """"" """"" # ""#????????????????? | | ????#"" """"" """"" + Y"#????????????????? | | ????#"Y """"" """"" # ""#????????????????? | | ????#"" """ """ # ###????????????????? | | ????### + #??????????????????? | | ??????# ######??????????????????? | | ??????####################???????????????????????? | | ?????????????????????????????????????????????????? | | ?????????????????????????????????????????????????? | | | | | | | | | | | | | | | | | | | | | | | | | | | | | +----------------------------------------------------+ Best States ------------- Heat Dissipation 28 Energy Generation 14 Energy Capacity 380 Matter Stores 300 Matter Capacity 300 Sight Range 16 Terrain Scan Density 10 Armor Coverage 150 Propulsion Shielding 33 Evasion (%) 55 Recoil Reduction 1 Item Schematics ----------------- Assault Rifle | -9/Materials | Scanalyzed Lgt. Armor Plating | -9/Materials | Scanalyzed Propulsion Shielding | -9/Materials | Scanalyzed Robot Schematics ------------------ None Fabricated ------------ Nothing Alien Tech Used ----------------- None Achievements -------------- Everything Is Under Control Part-time Mechanic Challenges ------------ None Game ------ Seed LinearGatlingChainsword Manual? 0 Play Time 00:30:09 Cumulative 1.3 hours Start 2024.04.04 @ 15:11:27 End 2024.04.04 @ 21:56:25 Sessions 3 Manual Loads 0 Difficulty Rogue Special Mode None Game No. 3 Rogue 3 Adventurer 0 Explorer 0 Win Type - Total 0 Types 0/0/0/0/0/0/0/0/0 Lore% 1 Gallery% 4 Achievement% 4 Wizard Run 0 Options --------- Layout 1 ASCII 0 Keyboard 1 Movement Arrows Keybinds 0 Fullscreen 2 Font 24/Smallcaps Map View 50x35 Zoom Use 0% Tactical HUD 0 Map Filters NONE Filters NONE Steam 1 RUN: c5c487ed-3d46-4761-8c12-1770c8e6237c